[Event "Early-Titled-Tuesday-Blitz-October-03-2023"]
[Site "Chess.com"]
[Date "2023.10.03"]
[Round "8"]
[White "chesskov1982"]
[Black "Eagle_2019"]
[Result "0-1"]
[WhiteElo "2815"]
[BlackElo "2696"]
[TimeControl "180+1"]
[EndTime "9:31:12 PDT"]
[Termination "Eagle_2019 won on time"]

1. d4 {[%clk 0:03:00.9]} 1... d5 {[%clk 0:02:59.4]} 2. c4 {[%clk 0:02:57.8]}
2... e6 {[%clk 0:02:57.6]} 3. Nc3 {[%clk 0:02:57.4]} 3... Nf6 {[%clk 0:02:56]}
4. cxd5 {[%clk 0:02:57.5]} 4... exd5 {[%clk 0:02:55.6]} 5. Bg5 {[%clk 0:02:58]}
5... c6 {[%clk 0:02:53.7]} 6. e3 {[%clk 0:02:57.9]} 6... Be7 {[%clk 0:02:51.4]}
7. Bd3 {[%clk 0:02:53.7]} 7... O-O {[%clk 0:02:50.9]} 8. Qc2 {[%clk 0:02:43.8]}
8... Nbd7 {[%clk 0:02:48.1]} 9. O-O-O {[%clk 0:02:41.4]} 9... b5 {[%clk
0:02:41.5]} 10. Kb1 {[%clk 0:02:39.4]} 10... Bb7 {[%clk 0:02:34.9]} 11. Bh4
{[%clk 0:02:27.5]} 11... a5 {[%clk 0:02:29.6]} 12. Nf3 {[%clk 0:02:24.3]} 12...
a4 {[%clk 0:02:24.3]} 13. Ne2 {[%clk 0:02:11.4]} 13... b4 {[%clk 0:02:12]} 14.
Ne5 {[%clk 0:02:06]} 14... Nxe5 {[%clk 0:02:09.3]} 15. dxe5 {[%clk 0:02:06.9]}
15... Ng4 {[%clk 0:02:04.2]} 16. Bg3 {[%clk 0:02:06]} 16... g6 {[%clk
0:01:59.1]} 17. h3 {[%clk 0:02:02.3]} 17... Nh6 {[%clk 0:01:57.5]} 18. h4 {[%clk
0:02:02.7]} 18... c5 {[%clk 0:01:07.4]} 19. h5 {[%clk 0:01:56.3]} 19... b3
{[%clk 0:01:03]} 20. Qc3 {[%clk 0:01:48.6]} 20... g5 {[%clk 0:00:50.4]} 21. a3
{[%clk 0:01:45.4]} 21... c4 {[%clk 0:00:47.3]} 22. Be4 {[%clk 0:01:17.8]} 22...
Re8 {[%clk 0:00:42.3]} 23. f4 {[%clk 0:01:15.2]} 23... Qa5 {[%clk 0:00:39]} 24.
fxg5 {[%clk 0:01:12.2]} 24... Bxg5 {[%clk 0:00:37.5]} 25. Bf3 {[%clk 0:01:04.9]}
25... Nf5 {[%clk 0:00:36.9]} 26. Bf4 {[%clk 0:01:03.3]} 26... h6 {[%clk
0:00:33.9]} 27. g4 {[%clk 0:00:56.5]} 27... Qxc3 {[%clk 0:00:31.2]} 28. Nxc3
{[%clk 0:00:54.8]} 28... Nxe3 {[%clk 0:00:31.4]} 29. Bxe3 {[%clk 0:00:52.6]}
29... Bxe3 {[%clk 0:00:31.1]} 30. Bxd5 {[%clk 0:00:50.4]} 30... Bxd5 {[%clk
0:00:31]} 31. Rxd5 {[%clk 0:00:48.8]} 31... Rad8 {[%clk 0:00:29.1]} 32. Rd6
{[%clk 0:00:44.7]} 32... Bg5 {[%clk 0:00:23.3]} 33. Rhd1 {[%clk 0:00:40.7]}
33... Rc8 {[%clk 0:00:23.4]} 34. R6d5 {[%clk 0:00:28.1]} 34... Bf4 {[%clk
0:00:23.2]} 35. Re1 {[%clk 0:00:25.8]} 35... f6 {[%clk 0:00:23]} 36. e6 {[%clk
0:00:24.2]} 36... Rc6 {[%clk 0:00:23]} 37. Rd4 {[%clk 0:00:15]} 37... Rcxe6
{[%clk 0:00:19.8]} 38. Red1 {[%clk 0:00:12.7]} 38... Be5 {[%clk 0:00:18.6]} 39.
Rxc4 {[%clk 0:00:10.7]} 39... Bxc3 {[%clk 0:00:18.7]} 40. bxc3 {[%clk
0:00:07.2]} 40... Re4 {[%clk 0:00:16.5]} 41. Rxe4 {[%clk 0:00:05.4]} 41... Rxe4
{[%clk 0:00:15.4]} 42. Rd8+ {[%clk 0:00:03.1]} 42... Kf7 {[%clk 0:00:14.8]} 43.
Rd7+ {[%clk 0:00:04]} 43... Ke6 {[%clk 0:00:11.6]} 44. Rh7 {[%clk 0:00:03.9]}
44... Rxg4 {[%clk 0:00:10.9]} 45. Rxh6 {[%clk 0:00:04.2]} 45... Rh4 {[%clk
0:00:10]} 46. Rh8 {[%clk 0:00:05.1]} 46... f5 {[%clk 0:00:08.4]} 47. Ra8 {[%clk
0:00:05.6]} 47... Kf6 {[%clk 0:00:06.9]} 48. h6 {[%clk 0:00:04.8]} 48... Kg6
{[%clk 0:00:07]} 49. Ra5 {[%clk 0:00:04.6]} 49... Rh1+ {[%clk 0:00:04.2]} 50.
Kb2 {[%clk 0:00:04.8]} 50... Rh2+ {[%clk 0:00:04.4]} 51. Kb1 {[%clk 0:00:05.2]}
51... Rh4 {[%clk 0:00:04.5]} 52. Kb2 {[%clk 0:00:05.1]} 52... Kg5 {[%clk
0:00:03]} 53. Kb1 {[%clk 0:00:05]} 53... Kxh6 {[%clk 0:00:02.9]} 54. Rxf5 {[%clk
0:00:04.5]} 54... Kg6 {[%clk 0:00:03.4]} 55. Rb5 {[%clk 0:00:04.2]} 55... Kf6
{[%clk 0:00:03.8]} 56. Rd5 {[%clk 0:00:04.2]} 56... Ke6 {[%clk 0:00:04]} 57. Rb5
{[%clk 0:00:02.1]} 57... Kd6 {[%clk 0:00:04]} 58. Rb4 {[%clk 0:00:02.6]} 58...
Rxb4 {[%clk 0:00:03.3]} 59. axb4 {[%clk 0:00:02.9]} 59... a3 {[%clk 0:00:03.1]}
60. Ka1 {[%clk 0:00:02.9]} 60... Kc6 {[%clk 0:00:03.3]} 61. c4 {[%clk
0:00:03.1]} 61... Kd6 {[%clk 0:00:03]} 62. Kb1 {[%clk 0:00:03.6]} 62... Kc6
{[%clk 0:00:03.2]} 63. Ka1 {[%clk 0:00:04.1]} 63... Kc7 {[%clk 0:00:03.3]} 64.
Kb1 {[%clk 0:00:04.7]} 64... Kd7 {[%clk 0:00:03.8]} 65. Ka1 {[%clk 0:00:05.2]}
65... Ke6 {[%clk 0:00:04.1]} 66. Kb1 {[%clk 0:00:05.7]} 66... Ke5 {[%clk
0:00:04.4]} 67. Ka1 {[%clk 0:00:06.3]} 67... Kd4 {[%clk 0:00:04.8]} 68. b5
{[%clk 0:00:05.7]} 68... b2+ {[%clk 0:00:03.8]} 69. Ka2 {[%clk 0:00:04]} 69...
Kc3 {[%clk 0:00:04.1]} 70. b6 {[%clk 0:00:02]} 70... Kc2 {[%clk 0:00:04.4]} 0-1

[Event "Early-Titled-Tuesday-Blitz-October-03-2023"]
[Site "Chess.com"]
[Date "2023.10.03"]
[Round "8"]
[White "blitzking1729"]
[Black "NelsonLinda"]
[Result "1/2-1/2"]
[WhiteElo "2723"]
[BlackElo "2599"]
[TimeControl "180+1"]
[EndTime "9:31:12 PDT"]
[Termination "Game drawn by repetition"]

1. Nf3 {[%clk 0:03:00.9]} 1... Nf6 {[%clk 0:02:59.6]} 2. g3 {[%clk 0:02:59.8]}
2... g6 {[%clk 0:02:59.2]} 3. Bg2 {[%clk 0:02:59.4]} 3... Bg7 {[%clk 0:02:59.5]}
4. O-O {[%clk 0:02:59.6]} 4... O-O {[%clk 0:02:59.8]} 5. d4 {[%clk 0:02:59.2]}
5... d6 {[%clk 0:02:59.9]} 6. c4 {[%clk 0:02:59.1]} 6... Nc6 {[%clk 0:03:00.4]}
7. Nc3 {[%clk 0:02:58.9]} 7... e5 {[%clk 0:03:00.7]} 8. dxe5 {[%clk 0:02:57.9]}
8... Nxe5 {[%clk 0:03:01.6]} 9. Nxe5 {[%clk 0:02:56.6]} 9... dxe5 {[%clk
0:03:02.5]} 10. Qxd8 {[%clk 0:02:56.8]} 10... Rxd8 {[%clk 0:03:03.4]} 11. Bg5
{[%clk 0:02:56.8]} 11... Rd7 {[%clk 0:03:03.8]} 12. h3 {[%clk 0:02:26.7]} 12...
c6 {[%clk 0:02:58]} 13. Rac1 {[%clk 0:02:23.6]} 13... h6 {[%clk 0:02:55.7]} 14.
Be3 {[%clk 0:02:23.3]} 14... Rd8 {[%clk 0:02:48.1]} 15. Na4 {[%clk 0:02:17.2]}
15... Bf8 {[%clk 0:02:18.3]} 16. a3 {[%clk 0:02:03.7]} 16... Be6 {[%clk
0:01:38]} 17. b4 {[%clk 0:02:03.1]} 17... Nd7 {[%clk 0:01:34.8]} 18. Rc3 {[%clk
0:01:46.7]} 18... Rdc8 {[%clk 0:01:27.3]} 19. Rfc1 {[%clk 0:01:40.8]} 19... f5
{[%clk 0:01:25.2]} 20. b5 {[%clk 0:01:09]} 20... e4 {[%clk 0:01:13.4]} 21. Bd4
{[%clk 0:00:57.2]} 21... Kf7 {[%clk 0:01:11.7]} 22. f3 {[%clk 0:00:54.8]} 22...
exf3 {[%clk 0:00:51.7]} 23. Bxf3 {[%clk 0:00:52.1]} 23... Nf6 {[%clk 0:00:24.3]}
24. bxc6 {[%clk 0:00:43]} 24... bxc6 {[%clk 0:00:25.2]} 25. Rb3 {[%clk
0:00:43.5]} 25... Rab8 {[%clk 0:00:25.2]} 26. Rxb8 {[%clk 0:00:40.3]} 26... Rxb8
{[%clk 0:00:26.1]} 27. Bxc6 {[%clk 0:00:40.6]} 27... Bxa3 {[%clk 0:00:26.3]} 28.
Ra1 {[%clk 0:00:40.1]} 28... Bd6 {[%clk 0:00:23.8]} 29. Nc5 {[%clk 0:00:22]}
29... Bxc5 {[%clk 0:00:16.1]} 30. Bxc5 {[%clk 0:00:21.6]} 30... Rc8 {[%clk
0:00:11.7]} 31. Rxa7+ {[%clk 0:00:20.1]} 31... Kg8 {[%clk 0:00:11.5]} 32. Ra6
{[%clk 0:00:13.5]} 32... Bxc4 {[%clk 0:00:11.6]} 33. Rb6 {[%clk 0:00:13.9]}
33... Nd5 {[%clk 0:00:11.8]} 34. Bxd5+ {[%clk 0:00:09.8]} 34... Bxd5 {[%clk
0:00:12.7]} 35. Bd4 {[%clk 0:00:08.2]} 35... Bf7 {[%clk 0:00:06]} 36. Kf2 {[%clk
0:00:07.7]} 36... Re8 {[%clk 0:00:05.9]} 37. h4 {[%clk 0:00:07.7]} 37... Rd8
{[%clk 0:00:03.3]} 38. e3 {[%clk 0:00:08]} 38... Kh7 {[%clk 0:00:03.3]} 39. Rf6
{[%clk 0:00:04.9]} 39... Rd7 {[%clk 0:00:03.3]} 40. Rb6 {[%clk 0:00:04.3]} 40...
Rd8 {[%clk 0:00:02.8]} 41. Rb7 {[%clk 0:00:04.6]} 41... Kg8 {[%clk 0:00:03.4]}
42. Ra7 {[%clk 0:00:04.7]} 42... Rc8 {[%clk 0:00:03.4]} 43. Kf3 {[%clk
0:00:04.2]} 43... Re8 {[%clk 0:00:03.8]} 44. Ra6 {[%clk 0:00:03.8]} 44... Bd5+
{[%clk 0:00:03.8]} 45. Kf2 {[%clk 0:00:03.8]} 45... Bf7 {[%clk 0:00:04]} 46. h5
{[%clk 0:00:04.2]} 46... gxh5 {[%clk 0:00:03.4]} 47. Rxh6 {[%clk 0:00:04.8]}
47... Bd5 {[%clk 0:00:02.7]} 48. Rxh5 {[%clk 0:00:04.5]} 48... Be4 {[%clk
0:00:02.7]} 49. Rh8+ {[%clk 0:00:04.5]} 49... Kf7 {[%clk 0:00:03.4]} 50. Rh7+
{[%clk 0:00:05.1]} 50... Kg6 {[%clk 0:00:03]} 51. Rg7+ {[%clk 0:00:05.6]} 51...
Kh6 {[%clk 0:00:03.3]} 52. Ra7 {[%clk 0:00:05.8]} 52... Rc8 {[%clk 0:00:03.6]}
53. g4 {[%clk 0:00:05.3]} 53... Rc2+ {[%clk 0:00:02.9]} 54. Kg3 {[%clk
0:00:06.2]} 54... Rg2+ {[%clk 0:00:03.3]} 55. Kf4 {[%clk 0:00:03.8]} 55... Rxg4+
{[%clk 0:00:03.8]} 56. Ke5 {[%clk 0:00:04.4]} 56... Rg6 {[%clk 0:00:04.3]} 57.
Bc5 {[%clk 0:00:03.8]} 57... Kg5 {[%clk 0:00:04.3]} 58. Be7+ {[%clk 0:00:03]}
58... Kg4 {[%clk 0:00:04.9]} 59. Ra1 {[%clk 0:00:03.3]} 59... Kf3 {[%clk
0:00:05.2]} 60. Bc5 {[%clk 0:00:03.6]} 60... Rc6 {[%clk 0:00:04.8]} 61. Bd4
{[%clk 0:00:03.9]} 61... Ke2 {[%clk 0:00:04.9]} 62. Ra2+ {[%clk 0:00:03.5]}
62... Rc2 {[%clk 0:00:05.5]} 63. Rxc2+ {[%clk 0:00:03.5]} 63... Bxc2 {[%clk
0:00:06.4]} 64. Kf4 {[%clk 0:00:04.4]} 64... Be4 {[%clk 0:00:06.7]} 65. Bf6
{[%clk 0:00:05]} 65... Kd3 {[%clk 0:00:07.3]} 66. Be5 {[%clk 0:00:05.9]} 66...
Ke2 {[%clk 0:00:08]} 67. Bd4 {[%clk 0:00:06.8]} 67... Kd3 {[%clk 0:00:08.9]} 68.
Be5 {[%clk 0:00:07.7]} 68... Ke2 {[%clk 0:00:09.8]} 69. Bd4 {[%clk 0:00:08.4]}
69... Kd3 {[%clk 0:00:10.7]} 70. Be5 {[%clk 0:00:09.2]} 1/2-1/2

[Event "Early-Titled-Tuesday-Blitz-October-03-2023"]
[Site "Chess.com"]
[Date "2023.10.03"]
[Round "9"]
[White "ChampStan"]
[Black "Al_Shima"]
[Result "0-1"]
[WhiteElo "2112"]
[BlackElo "2343"]
[TimeControl "180+1"]
[EndTime "9:40:52 PDT"]
[Termination "Al_Shima won by resignation"]

1. e4 {[%clk 0:02:57.3]} 1... d5 {[%clk 0:03:00.1]} 2. exd5 {[%clk 0:02:57.3]}
2... Nf6 {[%clk 0:03:00.3]} 3. Nc3 {[%clk 0:02:57.6]} 3... Nxd5 {[%clk
0:03:00.5]} 4. Nxd5 {[%clk 0:02:58.5]} 4... Qxd5 {[%clk 0:03:00]} 5. d4 {[%clk
0:02:58.8]} 5... Nc6 {[%clk 0:03:00.1]} 6. Nf3 {[%clk 0:02:57.2]} 6... Bg4
{[%clk 0:03:00.3]} 7. c4 {[%clk 0:02:52]} 7... Qe4+ {[%clk 0:02:59.2]} 8. Be3
{[%clk 0:02:40]} 8... e5 {[%clk 0:02:51.4]} 9. d5 {[%clk 0:02:32.4]} 9... Bb4+
{[%clk 0:02:47.8]} 10. Ke2 {[%clk 0:02:02.2]} 10... Nd4+ {[%clk 0:02:44.5]} 11.
Qxd4 {[%clk 0:01:57.4]} 11... exd4 {[%clk 0:02:45.4]} 0-1

[Event "Early-Titled-Tuesday-Blitz-October-03-2023"]
[Site "Chess.com"]
[Date "2023.10.03"]
[Round "9"]
[White "Shuvalov"]
[Black "UK_23"]
[Result "1-0"]
[WhiteElo "2470"]
[BlackElo "2424"]
[TimeControl "180+1"]
[EndTime "9:41:36 PDT"]
[Termination "Shuvalov won by resignation"]

1. d4 {[%clk 0:03:00.9]} 1... d5 {[%clk 0:02:59.7]} 2. c4 {[%clk 0:03:00.9]}
2... e6 {[%clk 0:03:00.1]} 3. Nf3 {[%clk 0:03:00.3]} 3... Nf6 {[%clk 0:03:00.4]}
4. Nc3 {[%clk 0:03:00.9]} 4... Be7 {[%clk 0:03:00]} 5. Bf4 {[%clk 0:03:00.8]}
5... O-O {[%clk 0:02:59.9]} 6. e3 {[%clk 0:03:00.9]} 6... b6 {[%clk 0:03:00.4]}
7. cxd5 {[%clk 0:02:57.7]} 7... Nxd5 {[%clk 0:03:01.3]} 8. Nxd5 {[%clk
0:02:57.1]} 8... Qxd5 {[%clk 0:03:02.2]} 9. a3 {[%clk 0:02:55.4]} 9... c5 {[%clk
0:02:58.2]} 10. dxc5 {[%clk 0:02:51.1]} 10... Qxd1+ {[%clk 0:02:50.1]} 11. Rxd1
{[%clk 0:02:50.6]} 11... Bxc5 {[%clk 0:02:51]} 12. Bd3 {[%clk 0:02:34]} 12...
Ba6 {[%clk 0:02:48.9]} 13. Ke2 {[%clk 0:02:26]} 13... Bxd3+ {[%clk 0:02:44.1]}
14. Rxd3 {[%clk 0:02:26.9]} 14... Nc6 {[%clk 0:02:44.5]} 15. Rhd1 {[%clk
0:02:23.5]} 15... Rfd8 {[%clk 0:02:42.9]} 16. b4 {[%clk 0:02:18.3]} 16... Rxd3
{[%clk 0:02:34.1]} 17. Rxd3 {[%clk 0:02:19.2]} 17... Bf8 {[%clk 0:02:32.8]} 18.
Rc3 {[%clk 0:02:14.7]} 18... Ne7 {[%clk 0:02:29.9]} 19. e4 {[%clk 0:02:07.6]}
19... a5 {[%clk 0:02:25.7]} 20. b5 {[%clk 0:02:06.3]} 20... Ng6 {[%clk
0:02:22.3]} 21. Be3 {[%clk 0:02:05.2]} 21... Bxa3 {[%clk 0:02:18.4]} 22. Rxa3
{[%clk 0:02:04.3]} 1-0

[Event "Early-Titled-Tuesday-Blitz-October-03-2023"]
[Site "Chess.com"]
[Date "2023.10.03"]
[Round "9"]
[White "elcala"]
[Black "APOKALIPSA13"]
[Result "0-1"]
[WhiteElo "1719"]
[BlackElo "2160"]
[TimeControl "180+1"]
[EndTime "9:41:39 PDT"]
[Termination "APOKALIPSA13 won by resignation"]

1. e4 {[%clk 0:02:59.3]} 1... e5 {[%clk 0:03:00.9]} 2. Nf3 {[%clk 0:02:57.4]}
2... f5 {[%clk 0:03:01.8]} 3. exf5 {[%clk 0:02:54.8]} 3... e4 {[%clk 0:03:01.1]}
4. Nd4 {[%clk 0:02:53.9]} 4... Qf6 {[%clk 0:02:59.9]} 5. Nb3 {[%clk 0:02:48]}
5... Qxf5 {[%clk 0:02:56.6]} 6. Nc3 {[%clk 0:02:48.4]} 6... Nf6 {[%clk
0:02:55.9]} 7. Bc4 {[%clk 0:02:42.4]} 7... d5 {[%clk 0:02:55.4]} 8. Bb5+ {[%clk
0:02:39.7]} 8... c6 {[%clk 0:02:53.7]} 9. Be2 {[%clk 0:02:38.9]} 9... Qg6 {[%clk
0:02:48.9]} 10. O-O {[%clk 0:02:36.4]} 10... Bh3 {[%clk 0:02:45.6]} 11. g3
{[%clk 0:02:28.1]} 11... Bxf1 {[%clk 0:02:44.4]} 12. Qxf1 {[%clk 0:02:29]} 12...
Bd6 {[%clk 0:02:43.6]} 13. d3 {[%clk 0:02:25.4]} 13... h5 {[%clk 0:02:40.4]} 14.
dxe4 {[%clk 0:02:23.5]} 14... dxe4 {[%clk 0:02:37.7]} 15. Qd1 {[%clk 0:02:12.7]}
15... Bc7 {[%clk 0:02:26]} 16. Be3 {[%clk 0:02:11.5]} 16... h4 {[%clk
0:02:18.6]} 17. Bd4 {[%clk 0:01:58.1]} 17... hxg3 {[%clk 0:02:16.3]} 18. Bxf6
{[%clk 0:01:59]} 18... gxf2+ {[%clk 0:02:12.8]} 19. Kh1 {[%clk 0:01:59.9]} 0-1

[Event "Early-Titled-Tuesday-Blitz-October-03-2023"]
[Site "Chess.com"]
[Date "2023.10.03"]
[Round "9"]
[White "LeoWin2012"]
[Black "ural58"]
[Result "0-1"]
[WhiteElo "2325"]
[BlackElo "2517"]
[TimeControl "180+1"]
[EndTime "9:41:45 PDT"]
[Termination "ural58 won by resignation"]

1. e4 {[%clk 0:03:00.9]} 1... d5 {[%clk 0:02:59.7]} 2. exd5 {[%clk 0:02:58.9]}
2... Qxd5 {[%clk 0:02:59.1]} 3. Nc3 {[%clk 0:02:58.6]} 3... Qd6 {[%clk 0:02:59]}
4. d4 {[%clk 0:02:58.6]} 4... c6 {[%clk 0:02:59]} 5. Nf3 {[%clk 0:02:58.5]} 5...
Bf5 {[%clk 0:02:58.1]} 6. Be3 {[%clk 0:02:57.9]} 6... e6 {[%clk 0:02:56.9]} 7.
Qd2 {[%clk 0:02:57.4]} 7... Nf6 {[%clk 0:02:55.7]} 8. Bf4 {[%clk 0:02:55.8]}
8... Qd8 {[%clk 0:02:50.9]} 9. Bd3 {[%clk 0:02:55.1]} 9... Bxd3 {[%clk
0:02:47.3]} 10. Qxd3 {[%clk 0:02:56]} 10... Nbd7 {[%clk 0:02:45.2]} 11. h3
{[%clk 0:02:52.6]} 11... h6 {[%clk 0:02:41.8]} 12. O-O-O {[%clk 0:02:49.7]}
12... Bb4 {[%clk 0:02:41.4]} 13. g4 {[%clk 0:02:49]} 13... Qa5 {[%clk
0:02:40.9]} 14. Kb1 {[%clk 0:02:46.9]} 14... Bxc3 {[%clk 0:02:40.8]} 15. Qxc3
{[%clk 0:02:46.7]} 15... Qxc3 {[%clk 0:02:40.7]} 16. bxc3 {[%clk 0:02:47.6]}
16... Nb6 {[%clk 0:02:39]} 17. Ne5 {[%clk 0:02:44.2]} 17... Nfd5 {[%clk
0:02:31.5]} 18. Bd2 {[%clk 0:02:43.4]} 18... f6 {[%clk 0:02:31.2]} 19. Ng6
{[%clk 0:02:38.9]} 19... Rg8 {[%clk 0:02:31]} 20. Nf4 {[%clk 0:02:38.3]} 20...
Kf7 {[%clk 0:02:25.4]} 21. Kb2 {[%clk 0:02:27.1]} 21... Nc4+ {[%clk 0:02:22.9]}
22. Kb3 {[%clk 0:02:27.4]} 22... Nxd2+ {[%clk 0:02:22.6]} 23. Rxd2 {[%clk
0:02:28.3]} 23... Nxf4 {[%clk 0:02:22.8]} 24. c4 {[%clk 0:02:17.5]} 24... g5
{[%clk 0:02:19.6]} 25. h4 {[%clk 0:02:16.5]} 25... Rad8 {[%clk 0:02:11.6]} 0-1

[Event "Early-Titled-Tuesday-Blitz-October-03-2023"]
[Site "Chess.com"]
[Date "2023.10.03"]
[Round "9"]
[White "HanSchut"]
[Black "dadice10"]
[Result "1/2-1/2"]
[WhiteElo "2309"]
[BlackElo "2166"]
[TimeControl "180+1"]
[EndTime "9:42:14 PDT"]
[Termination "Game drawn by agreement"]

1. e4 {[%clk 0:02:55.6]} 1... d5 {[%clk 0:02:58.6]} 2. exd5 {[%clk 0:02:54]}
2... Nf6 {[%clk 0:02:58]} 3. Bb5+ {[%clk 0:02:53.4]} 3... Nbd7 {[%clk
0:02:56.2]} 4. c4 {[%clk 0:02:51.9]} 4... a6 {[%clk 0:02:55.7]} 5. Bxd7+ {[%clk
0:02:50.3]} 5... Qxd7 {[%clk 0:02:56.6]} 6. d4 {[%clk 0:02:50.5]} 6... e6 {[%clk
0:02:52.3]} 7. dxe6 {[%clk 0:02:50.4]} 7... Qxe6+ {[%clk 0:02:52.4]} 8. Qe2
{[%clk 0:02:49.9]} 8... b5 {[%clk 0:02:52.3]} 9. cxb5 {[%clk 0:02:43.5]} 9...
axb5 {[%clk 0:02:49.8]} 10. Nc3 {[%clk 0:02:38.4]} 10... c6 {[%clk 0:02:45]} 11.
Bg5 {[%clk 0:02:29.1]} 11... Be7 {[%clk 0:02:43.3]} 12. Qxe6 {[%clk 0:01:53.6]}
12... Bxe6 {[%clk 0:02:44.2]} 13. Nge2 {[%clk 0:01:53]} 13... b4 {[%clk
0:02:40.3]} 14. Bxf6 {[%clk 0:01:47.3]} 14... bxc3 {[%clk 0:02:26]} 15. Bxe7
{[%clk 0:01:47]} 15... cxb2 {[%clk 0:02:25.8]} 16. Rb1 {[%clk 0:01:46.2]} 16...
Kxe7 {[%clk 0:02:25.5]} 17. Rxb2 {[%clk 0:01:43.4]} 17... Rxa2 {[%clk
0:02:19.5]} 18. Rxa2 {[%clk 0:01:42.2]} 18... Bxa2 {[%clk 0:02:19.4]} 19. Kd2
{[%clk 0:01:35.3]} 19... Bc4 {[%clk 0:02:16.2]} 20. Re1 {[%clk 0:01:30.2]} 20...
Bxe2 {[%clk 0:02:14.1]} 21. Rxe2+ {[%clk 0:01:30.3]} 21... Kd6 {[%clk
0:02:14.2]} 1/2-1/2

[Event "Early-Titled-Tuesday-Blitz-October-03-2023"]
[Site "Chess.com"]
[Date "2023.10.03"]
[Round "9"]
[White "GradualismUnleashed"]
[Black "Brave_spirit12"]
[Result "1-0"]
[WhiteElo "2636"]
[BlackElo "2739"]
[TimeControl "180+1"]
[EndTime "9:42:50 PDT"]
[Termination "GradualismUnleashed won by resignation"]

1. e4 {[%clk 0:02:59.6]} 1... e5 {[%clk 0:02:55.6]} 2. Nf3 {[%clk 0:02:59.8]}
2... Nc6 {[%clk 0:02:55.6]} 3. Bb5 {[%clk 0:03:00.4]} 3... a6 {[%clk 0:02:55.4]}
4. Ba4 {[%clk 0:03:01]} 4... Nf6 {[%clk 0:02:55]} 5. d4 {[%clk 0:03:01.5]} 5...
b5 {[%clk 0:02:52.3]} 6. Bb3 {[%clk 0:03:00.9]} 6... exd4 {[%clk 0:02:34.8]} 7.
O-O {[%clk 0:03:00.7]} 7... Be7 {[%clk 0:01:58.1]} 8. e5 {[%clk 0:02:59]} 8...
Ne4 {[%clk 0:01:57.9]} 9. Bd5 {[%clk 0:02:58.7]} 9... Nc5 {[%clk 0:01:56.9]} 10.
Nxd4 {[%clk 0:02:59]} 10... Bb7 {[%clk 0:01:54.3]} 11. Nf5 {[%clk 0:02:59.3]}
11... O-O {[%clk 0:01:33.8]} 12. Nc3 {[%clk 0:02:59.2]} 12... Nxe5 {[%clk
0:01:30.4]} 13. Qd4 {[%clk 0:02:58.6]} 13... d6 {[%clk 0:01:22]} 14. Bxb7 {[%clk
0:02:50.7]} 14... Nxb7 {[%clk 0:01:20.9]} 15. f4 {[%clk 0:02:51]} 15... c5
{[%clk 0:01:19.4]} 16. Qd5 {[%clk 0:02:43.2]} 16... Nc4 {[%clk 0:01:10.1]} 17.
Qxb7 {[%clk 0:02:36.6]} 17... Bf6 {[%clk 0:01:10.2]} 18. Nd5 {[%clk 0:02:14.5]}
18... g6 {[%clk 0:01:07.7]} 19. Nfe7+ {[%clk 0:02:10.7]} 19... Bxe7 {[%clk
0:01:06.4]} 20. Qxe7 {[%clk 0:02:10.7]} 20... Kg7 {[%clk 0:01:07]} 21. b3 {[%clk
0:02:05.8]} 1-0

[Event "Early-Titled-Tuesday-Blitz-October-03-2023"]
[Site "Chess.com"]
[Date "2023.10.03"]
[Round "9"]
[White "familijatop71"]
[Black "Elbebiber"]
[Result "0-1"]
[WhiteElo "2185"]
[BlackElo "2144"]
[TimeControl "180+1"]
[EndTime "9:42:52 PDT"]
[Termination "Elbebiber won by resignation"]

1. e4 {[%clk 0:03:00.9]} 1... d5 {[%clk 0:02:58.7]} 2. exd5 {[%clk 0:03:00.3]}
2... Nf6 {[%clk 0:02:58.1]} 3. d4 {[%clk 0:02:59.9]} 3... Nxd5 {[%clk
0:02:57.5]} 4. Nf3 {[%clk 0:03:00.8]} 4... Bf5 {[%clk 0:02:51.8]} 5. c3 {[%clk
0:02:59]} 5... e6 {[%clk 0:02:47.7]} 6. Bd3 {[%clk 0:02:58.9]} 6... Bxd3 {[%clk
0:02:42.5]} 7. Qxd3 {[%clk 0:02:59.8]} 7... c6 {[%clk 0:02:37.3]} 8. O-O {[%clk
0:03:00.2]} 8... Be7 {[%clk 0:02:35.9]} 9. Re1 {[%clk 0:02:58.6]} 9... Nd7
{[%clk 0:02:29.2]} 10. Nbd2 {[%clk 0:02:58.8]} 10... N7f6 {[%clk 0:02:24]} 11.
Ne5 {[%clk 0:02:55]} 11... Nf4 {[%clk 0:02:01.1]} 12. Qe4 {[%clk 0:02:46.1]}
12... Nxe4 {[%clk 0:02:00.2]} 13. Nxe4 {[%clk 0:02:44.8]} 13... Ng6 {[%clk
0:01:54.2]} 14. Nf3 {[%clk 0:02:42.4]} 14... O-O {[%clk 0:01:52.1]} 15. Be3
{[%clk 0:02:38.4]} 15... Qd5 {[%clk 0:01:48.6]} 16. Ng3 {[%clk 0:02:35.8]} 16...
Rfd8 {[%clk 0:01:42.5]} 17. Rad1 {[%clk 0:02:35.2]} 17... Qxa2 {[%clk
0:01:40.8]} 18. Re2 {[%clk 0:02:33.5]} 18... Qc4 {[%clk 0:01:38.3]} 19. Red2
{[%clk 0:02:32.1]} 19... a5 {[%clk 0:01:37.9]} 20. Ne4 {[%clk 0:02:25.7]} 20...
a4 {[%clk 0:01:34]} 21. Rd3 {[%clk 0:02:23.2]} 21... a3 {[%clk 0:01:28.3]} 22.
b4 {[%clk 0:02:21.7]} 22... a2 {[%clk 0:01:23.9]} 0-1

[Event "Early-Titled-Tuesday-Blitz-October-03-2023"]
[Site "Chess.com"]
[Date "2023.10.03"]
[Round "9"]
[White "Nekoo04"]
[Black "AjedrezenMadrid"]
[Result "0-1"]
[WhiteElo "2303"]
[BlackElo "2459"]
[TimeControl "180+1"]
[EndTime "9:42:57 PDT"]
[Termination "AjedrezenMadrid won by resignation"]

1. d4 {[%clk 0:02:43.1]} 1... Nf6 {[%clk 0:02:59.8]} 2. c4 {[%clk 0:02:43]} 2...
b6 {[%clk 0:02:59.6]} 3. Nc3 {[%clk 0:02:39.4]} 3... Bb7 {[%clk 0:02:59]} 4. f3
{[%clk 0:02:39.8]} 4... d5 {[%clk 0:02:59.2]} 5. cxd5 {[%clk 0:02:39]} 5... Nxd5
{[%clk 0:03:00.1]} 6. e4 {[%clk 0:02:39]} 6... Nxc3 {[%clk 0:03:01]} 7. bxc3
{[%clk 0:02:39.9]} 7... e5 {[%clk 0:03:00.9]} 8. Bb5+ {[%clk 0:02:32.2]} 8... c6
{[%clk 0:03:00.4]} 9. Bc4 {[%clk 0:02:31.7]} 9... exd4 {[%clk 0:03:00.8]} 10.
cxd4 {[%clk 0:02:31.4]} 10... Bb4+ {[%clk 0:02:58.6]} 11. Kf2 {[%clk 0:02:31.2]}
11... O-O {[%clk 0:02:51.2]} 12. Ne2 {[%clk 0:02:29.9]} 12... c5 {[%clk
0:02:49.5]} 13. Be3 {[%clk 0:02:27.7]} 13... Nc6 {[%clk 0:02:48.9]} 14. dxc5
{[%clk 0:02:23.7]} 14... Qf6 {[%clk 0:02:48.2]} 15. cxb6 {[%clk 0:01:59.8]}
15... Ne5 {[%clk 0:02:47.6]} 16. Qb3 {[%clk 0:01:21.9]} 16... Ng4+ {[%clk
0:02:38]} 17. Kg3 {[%clk 0:01:20]} 17... Bd6+ {[%clk 0:02:33]} 18. Bf4 {[%clk
0:01:03.8]} 18... g5 {[%clk 0:02:04.3]} 19. Be5 {[%clk 0:00:53.7]} 19... Bxe5+
{[%clk 0:02:03.1]} 0-1